[Event "Nordstansblixten 2025"]
[Site "Nordstan, Göteborg, Sweden"]
[Date "2025.05.10"]
[Round "2.3"]
[White "Cigoja, Vuk"]
[Black "Buzleta, Patrik"]
[Result "1/2-1/2"]
[TimeControl "3 minutes + 2 seconds per move from move one"]
[WhiteFideId "14411628"]
[BlackFideId "1755463"]
[WhiteElo "1719"]
[BlackElo "1950"]

1. e4 {[%clk 00:03:03]} {[%emt 00:00:03]} e6 {[%clk 00:03:04]} 2. d4 {[%clk
00:03:04]} a6 {[%clk 00:03:05]} 3. c4 {[%clk 00:03:05]} g6 {[%clk 00:03:03]}
{[%emt 00:00:06]} 4. Bd3 {[%clk 00:03:06]} Bg7 {[%clk 00:03:04]} 5. Be3 {[%clk
00:03:07]} d6 {[%clk 00:03:03]} {[%emt 00:00:03]} 6. Ne2 {[%clk 00:03:07]}
{[%emt 00:00:02]} b6 {[%clk 00:03:03]} {[%emt 00:00:01]} 7. Nbc3 {[%clk
00:03:02]} {[%emt 00:00:07]} Bb7 {[%clk 00:03:05]} 8. Qd2 {[%clk 00:02:51]}
{[%emt 00:00:13]} h6 {[%clk 00:03:05]} {[%emt 00:00:01]} 9. O-O {[%clk
00:02:42]} {[%emt 00:00:10]} Nf6 {[%clk 00:03:06]} 10. Rac1 {[%clk 00:02:25]}
{[%emt 00:00:19]} Ng4 {[%clk 00:03:07]} 11. d5 {[%clk 00:02:21]} {[%emt
00:00:07]} Qe7 {[%clk 00:02:32]} {[%emt 00:00:36]} 12. h3 {[%clk 00:02:15]}
{[%emt 00:00:09]} Nxe3 {[%clk 00:02:25]} {[%emt 00:00:08]} 13. Qxe3 {[%clk
00:02:15]} {[%emt 00:00:03]} Nd7 {[%clk 00:02:26]} 14. b4 {[%clk 00:02:13]}
{[%emt 00:00:03]} O-O {[%clk 00:02:22]} {[%emt 00:00:06]} 15. Qg3 {[%clk
00:01:51]} {[%emt 00:00:24]} Ne5 {[%clk 00:02:13]} {[%emt 00:00:11]} 16. f4
{[%clk 00:01:49]} {[%emt 00:00:04]} Nxd3 {[%clk 00:02:13]} {[%emt 00:00:03]} 17.
Qxd3 {[%clk 00:01:50]} Rfe8 {[%clk 00:02:12]} {[%emt 00:00:03]} 18. a4 {[%clk
00:01:36]} {[%emt 00:00:16]} b5 {[%clk 00:02:06]} {[%emt 00:00:08]} 19. cxb5
{[%clk 00:01:29]} {[%emt 00:00:09]} axb5 {[%emt 00:00:10]} 20. Nxb5 {[%clk
00:01:16]} {[%emt 00:00:06]} Ba6 {[%clk 00:02:07]} {[%emt 00:00:03]} 21. Nec3
{[%clk 00:00:58]} {[%emt 00:00:20]} Bxc3 {[%clk 00:01:54]} {[%emt 00:00:14]} 22.
Qxc3 {[%clk 00:00:55]} {[%emt 00:00:06]} exd5 {[%clk 00:01:53]} {[%emt
00:00:03]} 23. exd5 {[%clk 00:00:54]} {[%emt 00:00:04]} Qe3+ {[%clk 00:01:50]}
{[%emt 00:00:04]} 24. Qxe3 {[%clk 00:00:55]} {[%emt 00:00:02]} Rxe3 {[%clk
00:01:51]} 25. Nxc7 {[%clk 00:00:45]} {[%emt 00:00:11]} Bxf1 {[%clk 00:01:37]}
{[%emt 00:00:16]} 26. Nxa8 {[%clk 00:00:45]} {[%emt 00:00:02]} Bd3 {[%clk
00:01:24]} {[%emt 00:00:13]} 27. Nb6 {[%clk 00:00:36]} {[%emt 00:00:14]} Re4
{[%clk 00:01:22]} {[%emt 00:00:04]} 28. Rd1 {[%clk 00:00:30]} {[%emt 00:00:08]}
Bc2 {[%clk 00:01:18]} {[%emt 00:00:06]} 29. Rd2 {[%clk 00:00:29]} {[%emt
00:00:03]} Bb3 {[%clk 00:01:16]} {[%emt 00:00:03]} 30. b5 {[%clk 00:00:26]}
{[%emt 00:00:06]} Bxa4 {[%clk 00:01:16]} {[%emt 00:00:02]} 31. Nxa4 {[%clk
00:00:27]} {[%emt 00:00:01]} Rxa4 {[%clk 00:01:17]} 32. Rb2 {[%clk 00:00:28]}
{[%emt 00:00:01]} Ra8 {[%clk 00:01:18]} {[%emt 00:00:01]} 33. b6 {[%clk
00:00:28]} {[%emt 00:00:02]} Rb8 {[%clk 00:01:19]} 34. b7 {[%clk 00:00:30]} Kf8
{[%clk 00:01:20]} {[%emt 00:00:01]} 35. Kf2 {[%clk 00:00:31]} Ke7 {[%clk
00:01:22]} 36. Ke3 {[%clk 00:00:32]} Kd7 {[%clk 00:01:23]} 37. Rb6 {[%clk
00:00:30]} {[%emt 00:00:05]} Kc7 {[%clk 00:01:24]} 38. Rc6+ {[%clk 00:00:31]}
Kd7 {[%clk 00:01:24]} {[%emt 00:00:02]} 39. Rb6 {[%clk 00:00:29]} {[%emt
00:00:03]} Kc7 {[%clk 00:01:23]} {[%emt 00:00:04]} 40. Rc6+ {[%clk 00:00:31]}
1/2-1/2

[Event "Nordstansblixten 2025"]
[Site "Nordstan, Göteborg, Sweden"]
[Date "2025.05.10"]
[Round "2.4"]
[White "Kenani, Dariush"]
[Black "Madevan Vaishnavi, Yaashvan"]
[Result "0-1"]
[TimeControl "3 minutes + 2 seconds per move from move one"]
[WhiteFideId "1707973"]
[BlackFideId "1772180"]
[WhiteElo "1933"]
[BlackElo "1717"]

1. d4 {[%clk 00:03:00]} {[%emt 00:00:03]} d5 {[%clk 00:03:03]} {[%emt
00:00:02]} 2. c4 {[%clk 00:03:01]} e6 {[%clk 00:03:04]} {[%emt 00:00:01]} 3.
Nc3 {[%clk 00:03:01]} {[%emt 00:00:02]} Nf6 {[%clk 00:03:06]} 4. e3 {[%clk
00:02:59]} {[%emt 00:00:04]} c5 {[%clk 00:02:55]} {[%emt 00:00:13]} 5. Bd3
{[%clk 00:02:57]} {[%emt 00:00:03]} Nc6 {[%clk 00:02:48]} {[%emt 00:00:10]} 6.
Nf3 {[%clk 00:02:51]} {[%emt 00:00:08]} b6 {[%clk 00:02:29]} {[%emt 00:00:21]}
7. cxd5 {[%clk 00:02:48]} {[%emt 00:00:05]} exd5 {[%clk 00:02:27]} {[%emt
00:00:04]} 8. O-O {[%clk 00:02:46]} {[%emt 00:00:03]} Bd6 {[%clk 00:02:23]}
{[%emt 00:00:07]} 9. dxc5 {[%clk 00:02:34]} {[%emt 00:00:14]} Bxc5 {[%clk
00:02:11]} {[%emt 00:00:14]} 10. Bb5 {[%clk 00:02:30]} {[%emt 00:00:06]} Bb7
{[%clk 00:02:04]} {[%emt 00:00:09]} 11. Qa4 {[%clk 00:02:28]} {[%emt 00:00:04]}
Qd6 {[%clk 00:01:47]} {[%emt 00:00:19]} 12. Rd1 {[%clk 00:02:05]} {[%emt
00:00:25]} O-O {[%clk 00:01:41]} {[%emt 00:00:08]} 13. e4 {[%clk 00:01:55]}
{[%emt 00:00:11]} d4 {[%clk 00:01:37]} {[%emt 00:00:07]} 14. Be3 {[%clk
00:01:21]} {[%emt 00:00:36]} a6 {[%clk 00:01:31]} {[%emt 00:00:08]} 15. Bxc6
{[%clk 00:01:19]} {[%emt 00:00:03]} Bxc6 {[%clk 00:01:29]} {[%emt 00:00:04]} 16.
Qc2 {[%clk 00:01:20]} {[%emt 00:00:02]} Qe7 {[%clk 00:01:09]} {[%emt 00:00:22]}
17. Nxd4 {[%clk 00:01:18]} {[%emt 00:00:03]} Bxe4 {[%clk 00:01:03]} {[%emt
00:00:08]} 18. Nxe4 {[%clk 00:01:18]} {[%emt 00:00:02]} Qxe4 {[%clk 00:01:01]}
{[%emt 00:00:05]} 19. Qxe4 {[%clk 00:01:17]} Nxe4 {[%clk 00:01:01]} {[%emt
00:00:04]} 20. Nf5 Bxe3 {[%clk 00:00:56]} 21. Nxe3 {[%clk 00:01:13]} {[%emt
00:00:02]} Rfd8 {[%clk 00:00:39]} {[%emt 00:00:19]} 22. f3 {[%clk 00:01:10]}
{[%emt 00:00:04]} Nf6 {[%clk 00:00:30]} {[%emt 00:00:11]} 23. Kf2 {[%clk
00:01:05]} {[%emt 00:00:08]} Kf8 {[%clk 00:00:31]} {[%emt 00:00:01]} 24. Ke2
{[%clk 00:00:56]} {[%emt 00:00:10]} b5 {[%clk 00:00:26]} {[%emt 00:00:08]} 25.
Rac1 {[%clk 00:00:55]} {[%emt 00:00:03]} Rxd1 {[%clk 00:00:21]} {[%emt
00:00:07]} 26. Rxd1 {[%clk 00:00:56]} {[%emt 00:00:01]} g6 {[%clk 00:00:17]}
{[%emt 00:00:07]} 27. Rd6 {[%clk 00:00:53]} {[%emt 00:00:03]} Ke7 {[%clk
00:00:18]} {[%emt 00:00:02]} 28. Rc6 {[%clk 00:00:54]} {[%emt 00:00:01]} a5
{[%clk 00:00:13]} {[%emt 00:00:07]} 29. a3 {[%clk 00:00:54]} {[%emt 00:00:02]}
Rb8 {[%clk 00:00:10]} {[%emt 00:00:05]} 30. g3 {[%clk 00:00:52]} {[%emt
00:00:04]} b4 {[%clk 00:00:08]} {[%emt 00:00:04]} 31. Rc2 {[%clk 00:00:49]}
{[%emt 00:00:04]} bxa3 {[%clk 00:00:08]} {[%emt 00:00:03]} 32. bxa3 {[%clk
00:00:50]} Rb3 {[%clk 00:00:08]} {[%emt 00:00:02]} 33. Nc4 {[%clk 00:00:49]}
{[%emt 00:00:03]} a4 {[%clk 00:00:06]} {[%emt 00:00:05]} 34. Kd2 {[%clk
00:00:46]} {[%emt 00:00:05]} Nd5 {[%clk 00:00:07]} 35. Ra2 {[%clk 00:00:43]}
{[%emt 00:00:05]} Rxf3 {[%clk 00:00:07]} {[%emt 00:00:02]} 36. Ra1 {[%clk
00:00:40]} {[%emt 00:00:05]} Rf2+ {[%clk 00:00:08]} {[%emt 00:00:01]} 37. Kd3
{[%clk 00:00:39]} {[%emt 00:00:03]} Rxh2 {[%clk 00:00:08]} {[%emt 00:00:01]} 38.
Kd4 {[%clk 00:00:40]} Nf6 {[%clk 00:00:08]} {[%emt 00:00:02]} 39. Ne3 {[%clk
00:00:40]} {[%emt 00:00:02]} Rd2+ {[%clk 00:00:09]} {[%emt 00:00:02]} 40. Kc3
{[%clk 00:00:40]} {[%emt 00:00:02]} Re2 {[%clk 00:00:09]} {[%emt 00:00:02]} 41.
Kd3 {[%clk 00:00:41]} Rb2 {[%clk 00:00:08]} {[%emt 00:00:02]} 42. Kc3 {[%clk
00:00:40]} {[%emt 00:00:03]} Rb3+ {[%clk 00:00:10]} {[%emt 00:00:01]} 43. Kd4
{[%clk 00:00:41]} h5 {[%clk 00:00:07]} {[%emt 00:00:04]} 44. Nf1 {[%clk
00:00:34]} {[%emt 00:00:10]} Ng4 {[%clk 00:00:08]} {[%emt 00:00:01]} 45. Nd2
{[%clk 00:00:33]} {[%emt 00:00:02]} Rxg3 {[%emt 00:00:07]} 46. Ne4 Re3 {[%clk
00:00:05]} {[%emt 00:00:02]} 47. Ra2 {[%clk 00:00:29]} {[%emt 00:00:08]} Rb3
{[%clk 00:00:04]} {[%emt 00:00:02]} 48. Ra1 {[%clk 00:00:29]} {[%emt 00:00:01]}
h4 {[%clk 00:00:05]} {[%emt 00:00:02]} 49. Ra2 {[%clk 00:00:29]} {[%emt
00:00:03]} f5 {[%clk 00:00:06]} 50. Ng5 {[%clk 00:00:29]} {[%emt 00:00:01]} Re3
{[%clk 00:00:06]} {[%emt 00:00:02]} 51. Rg2 {[%clk 00:00:28]} {[%emt 00:00:03]}
Rxa3 {[%clk 00:00:06]} {[%emt 00:00:01]} 52. Re2+ {[%clk 00:00:26]} {[%emt
00:00:04]} Kf6 {[%clk 00:00:07]} {[%emt 00:00:02]} 53. Nh7+ {[%clk 00:00:26]}
{[%emt 00:00:02]} Kg7 {[%clk 00:00:08]} 54. Ng5 {[%emt 00:00:02]} Kf6 {[%clk
00:00:07]} {[%emt 00:00:02]} 55. Nh7+ {[%clk 00:00:28]} Kf7 {[%clk 00:00:08]}
56. Ng5+ {[%clk 00:00:29]} Kg8 {[%clk 00:00:07]} {[%emt 00:00:03]} 57. Ne6
{[%clk 00:00:29]} {[%emt 00:00:02]} h3 {[%clk 00:00:07]} {[%emt 00:00:02]} 58.
Nf4 {[%clk 00:00:29]} {[%emt 00:00:02]} h2 {[%clk 00:00:08]} {[%emt 00:00:01]}
59. Re1 {[%clk 00:00:30]} Re3 {[%emt 00:00:06]} 60. Rh1 {[%clk 00:00:30]} a3
{[%clk 00:00:06]} {[%emt 00:00:03]} 61. Nh3 {[%clk 00:00:27]} {[%emt 00:00:04]}
Rxh3 {[%clk 00:00:06]} {[%emt 00:00:01]} 62. Kc4 {[%clk 00:00:28]} Nf2 {[%clk
00:00:07]} {[%emt 00:00:02]} 63. Ra1 {[%clk 00:00:29]} {[%emt 00:00:02]} h1=Q
64. Rxh1 {[%clk 00:00:30]} Rxh1 {[%clk 00:00:07]} {[%emt 00:00:02]} 65. Kb3
{[%clk 00:00:31]} g5 {[%clk 00:00:08]} 66. Kxa3 {[%clk 00:00:32]} g4 {[%clk
00:00:10]} 67. Kb4 {[%clk 00:00:33]} g3 {[%clk 00:00:10]} {[%emt 00:00:02]} 68.
Kc5 {[%clk 00:00:35]} g2 {[%clk 00:00:09]} {[%emt 00:00:04]} 69. Kd4 {[%clk
00:00:36]} g1=Q {[%clk 00:00:08]} {[%emt 00:00:02]} 70. Ke3 {[%clk 00:00:37]}
{[%emt 00:00:01]} Ng4+ {[%clk 00:00:09]} {[%emt 00:00:02]} 71. Kf4 {[%clk
00:00:38]} {[%emt 00:00:01]} Qf2+ {[%clk 00:00:09]} {[%emt 00:00:02]} 72. Kg5
{[%clk 00:00:38]} {[%emt 00:00:02]} Rh5+ {[%clk 00:00:06]} {[%emt 00:00:05]} 73.
Kg6 {[%clk 00:00:38]} {[%emt 00:00:02]} f4 {[%clk 00:00:03]} {[%emt 00:00:04]}
74. Kxh5 {[%clk 00:00:33]} {[%emt 00:00:06]} f3 {[%clk 00:00:04]} {[%emt
00:00:02]} 75. Kxg4 {[%emt 00:00:02]} Qg2+ {[%clk 00:00:04]} 76. Kf4 {[%clk
00:00:36]} f2 {[%clk 00:00:06]} 77. Ke3 {[%clk 00:00:36]} f1=R {[%emt
00:00:02]} 78. Kd3 {[%clk 00:00:37]} Qg5 {[%emt 00:00:04]} 79. Ke4 {[%clk
00:00:38]} Qf6 {[%clk 00:00:07]} {[%emt 00:00:01]} 80. Kd5 {[%clk 00:00:39]}
{[%emt 00:00:01]} Re1 {[%clk 00:00:08]} 81. Kc4 {[%clk 00:00:39]} {[%emt
00:00:02]} Qd6 {[%clk 00:00:09]} 82. Kc3 {[%clk 00:00:40]} {[%emt 00:00:01]}
Rc1+ {[%clk 00:00:10]} 83. Kb2 {[%clk 00:00:41]} Rc8 {[%clk 00:00:11]} 84. Kb3
{[%clk 00:00:43]} Qb6+ {[%clk 00:00:12]} 0-1

[Event "Nordstansblixten 2025"]
[Site "Nordstan, Göteborg, Sweden"]
[Date "2025.05.10"]
[Round "2.5"]
[White "Ring, Sami"]
[Black "Olivius, Sten"]
[Result "0-1"]
[TimeControl "3 minutes + 2 seconds per move from move one"]
[WhiteFideId "1785869"]
[BlackFideId "1788728"]
[WhiteElo "1712"]
[BlackElo "1874"]

1. e4 {[%clk 00:03:02]} {[%emt 00:00:01]} e6 {[%clk 00:03:03]} {[%emt
00:00:02]} 2. d4 {[%clk 00:03:03]} d5 {[%clk 00:03:05]} 3. Nc3 {[%clk
00:03:04]} {[%emt 00:00:01]} Nf6 {[%clk 00:03:06]} 4. e5 {[%clk 00:03:03]}
{[%emt 00:00:03]} Nfd7 {[%clk 00:03:07]} 5. f4 {[%clk 00:03:03]} {[%emt
00:00:02]} c5 {[%clk 00:03:08]} 6. Nf3 {[%clk 00:03:03]} {[%emt 00:00:02]} Nc6
{[%clk 00:03:10]} 7. Be3 {[%clk 00:03:04]} {[%emt 00:00:02]} Qb6 {[%clk
00:03:11]} 8. Na4 {[%clk 00:03:03]} {[%emt 00:00:03]} Qa5+ {[%clk 00:03:12]} 9.
c3 {[%clk 00:03:04]} cxd4 {[%clk 00:03:13]} {[%emt 00:00:01]} 10. Nxd4 {[%clk
00:03:04]} {[%emt 00:00:02]} Nxd4 {[%clk 00:03:03]} {[%emt 00:00:12]} 11. Bxd4
{[%clk 00:03:03]} {[%emt 00:00:02]} b5 {[%clk 00:02:56]} {[%emt 00:00:10]} 12.
b4 {[%clk 00:02:56]} {[%emt 00:00:09]} Qxa4 {[%clk 00:02:55]} {[%emt 00:00:03]}
13. Qxa4 {[%clk 00:02:56]} {[%emt 00:00:02]} bxa4 {[%clk 00:02:56]} {[%emt
00:00:02]} 14. a3 {[%clk 00:02:55]} {[%emt 00:00:02]} a5 {[%clk 00:02:49]}
{[%emt 00:00:10]} 15. Bd3 {[%clk 00:02:56]} {[%emt 00:00:01]} axb4 {[%clk
00:02:49]} {[%emt 00:00:02]} 16. cxb4 {[%clk 00:02:56]} {[%emt 00:00:01]} Ba6
{[%clk 00:02:39]} {[%emt 00:00:12]} 17. b5 {[%clk 00:02:54]} {[%emt 00:00:05]}
Bb7 {[%clk 00:02:39]} 18. O-O {[%clk 00:02:54]} {[%emt 00:00:02]} Nc5 {[%clk
00:02:33]} {[%emt 00:00:09]} 19. Bxc5 {[%clk 00:02:48]} {[%emt 00:00:06]} Bxc5+
{[%clk 00:02:32]} {[%emt 00:00:04]} 20. Kh1 {[%clk 00:02:47]} {[%emt 00:00:02]}
O-O {[%clk 00:02:26]} {[%emt 00:00:09]} 21. Rf3 {[%clk 00:02:41]} {[%emt
00:00:09]} f6 {[%clk 00:02:00]} {[%emt 00:00:28]} 22. Rh3 {[%clk 00:02:29]}
{[%emt 00:00:13]} f5 {[%clk 00:01:53]} {[%emt 00:00:10]} 23. g4 {[%clk
00:02:21]} {[%emt 00:00:10]} g6 {[%clk 00:01:26]} {[%emt 00:00:28]} 24. g5
{[%clk 00:02:16]} {[%emt 00:00:08]} Rac8 {[%clk 00:01:15]} {[%emt 00:00:13]} 25.
Rh6 {[%clk 00:02:00]} {[%emt 00:00:18]} Be3 {[%clk 00:01:06]} {[%emt 00:00:11]}
26. Kg2 {[%clk 00:01:47]} {[%emt 00:00:12]} Bxf4 {[%clk 00:00:56]} {[%emt
00:00:15]} 27. h4 {[%clk 00:01:40]} {[%emt 00:00:08]} Rc3 {[%clk 00:00:38]}
{[%emt 00:00:20]} 28. Bf1 {[%clk 00:01:28]} {[%emt 00:00:15]} d4+ {[%clk
00:00:38]} {[%emt 00:00:02]} 29. Kf2 {[%clk 00:01:19]} {[%emt 00:00:09]} Be4
{[%emt 00:00:27]} 30. Re1 {[%clk 00:01:06]} Bg3+ {[%clk 00:00:29]} {[%emt
00:00:02]} 31. Ke2 {[%clk 00:01:07]} {[%emt 00:00:02]} Bxe1 {[%clk 00:00:28]}
{[%emt 00:00:03]} 32. Kxe1 {[%clk 00:01:08]} {[%emt 00:00:01]} Rxa3 {[%clk
00:00:23]} {[%emt 00:00:08]} 33. h5 {[%clk 00:01:07]} {[%emt 00:00:02]} Kg7
{[%clk 00:00:24]} 34. hxg6 {[%clk 00:01:06]} {[%emt 00:00:03]} hxg6 {[%clk
00:00:25]} {[%emt 00:00:02]} 35. Bc4 {[%clk 00:01:05]} {[%emt 00:00:03]} Re3+
{[%clk 00:00:23]} {[%emt 00:00:04]} 36. Kf2 {[%clk 00:01:01]} {[%emt 00:00:05]}
Re8 {[%clk 00:00:22]} {[%emt 00:00:03]} 37. b6 {[%clk 00:00:55]} {[%emt
00:00:09]} Re7 {[%clk 00:00:21]} {[%emt 00:00:03]} 38. Rh2 {[%clk 00:00:45]}
{[%emt 00:00:12]} a3 {[%clk 00:00:21]} {[%emt 00:00:02]} 39. Kf1 {[%clk
00:00:41]} {[%emt 00:00:06]} Bd3+ {[%clk 00:00:22]} 40. Bxd3 {[%clk 00:00:42]}
{[%emt 00:00:02]} Rxd3 {[%clk 00:00:23]} 41. Rc2 {[%clk 00:00:36]} {[%emt
00:00:08]} Rc3 {[%clk 00:00:23]} {[%emt 00:00:03]} 42. Ra2 {[%clk 00:00:32]}
{[%emt 00:00:05]} Rb7 {[%clk 00:00:22]} {[%emt 00:00:03]} 43. Ke2 {[%clk
00:00:32]} {[%emt 00:00:02]} Rxb6 {[%clk 00:00:22]} {[%emt 00:00:02]} 44. Kd2
{[%clk 00:00:33]} {[%emt 00:00:01]} Rb2+ {[%clk 00:00:23]} 0-1

[Event "Nordstansblixten 2025"]
[Site "Nordstan, Göteborg, Sweden"]
[Date "2025.05.10"]
[Round "2.6"]
[White "Mohammed, Safian Haj"]
[Black "Wennerholm, Camilla"]
[Result "1-0"]
[TimeControl "3 minutes + 2 seconds per move from move one"]
[WhiteFideId "1729276"]
[BlackFideId "1776380"]
[WhiteElo "1874"]
[BlackElo "1599"]

1. e4 {[%clk 00:03:03]} {[%emt 00:01:43]} c5 {[%clk 00:03:03]} 2. Nf3 {[%clk
00:03:04]} Nc6 {[%clk 00:03:04]} {[%emt 00:00:02]} 3. d4 {[%clk 00:03:06]}
{[%emt 00:00:01]} cxd4 {[%clk 00:03:03]} {[%emt 00:00:03]} 4. Nxd4 {[%clk
00:03:07]} e5 {[%clk 00:03:04]} 5. Nb5 {[%clk 00:03:07]} {[%emt 00:00:02]} d6
{[%clk 00:03:03]} {[%emt 00:00:03]} 6. N1c3 {[%clk 00:03:07]} {[%emt 00:00:02]}
a6 {[%clk 00:02:57]} {[%emt 00:00:08]} 7. Na3 {[%clk 00:03:07]} {[%emt
00:00:02]} Nf6 {[%clk 00:02:57]} {[%emt 00:00:01]} 8. Bg5 {[%clk 00:03:08]} Be6
{[%clk 00:02:55]} {[%emt 00:00:05]} 9. Nd5 {[%clk 00:03:06]} {[%emt 00:00:04]}
Qa5+ {[%clk 00:02:44]} {[%emt 00:00:13]} 10. Bd2 {[%clk 00:03:00]} {[%emt
00:00:07]} Qd8 {[%clk 00:02:44]} {[%emt 00:00:03]} 11. Nxf6+ {[%clk 00:02:50]}
{[%emt 00:00:12]} Qxf6 {[%clk 00:02:41]} {[%emt 00:00:05]} 12. c3 {[%clk
00:02:50]} {[%emt 00:00:03]} b5 {[%clk 00:02:36]} {[%emt 00:00:07]} 13. Nc2
{[%clk 00:02:50]} {[%emt 00:00:02]} Be7 {[%clk 00:02:34]} {[%emt 00:00:04]} 14.
Ne3 {[%clk 00:02:50]} {[%emt 00:00:02]} Rd8 {[%clk 00:02:24]} {[%emt 00:00:12]}
15. Nd5 {[%clk 00:02:50]} {[%emt 00:00:02]} Bxd5 {[%clk 00:02:23]} {[%emt
00:00:03]} 16. exd5 {[%clk 00:02:51]} {[%emt 00:00:01]} Na5 {[%clk 00:02:15]}
{[%emt 00:00:11]} 17. a4 {[%clk 00:02:49]} {[%emt 00:00:03]} Nc4 {[%clk
00:02:05]} {[%emt 00:00:12]} 18. axb5 {[%clk 00:02:46]} {[%emt 00:00:05]} axb5
{[%clk 00:02:06]} {[%emt 00:00:02]} 19. Bxc4 {[%clk 00:02:40]} {[%emt
00:00:07]} bxc4 {[%clk 00:02:06]} {[%emt 00:00:02]} 20. Qa4+ {[%clk 00:02:41]}
{[%emt 00:00:01]} Kf8 {[%clk 00:02:06]} {[%emt 00:00:02]} 21. Qxc4 {[%clk
00:02:35]} {[%emt 00:00:08]} e4 {[%clk 00:01:51]} {[%emt 00:00:18]} 22. O-O
{[%clk 00:02:33]} {[%emt 00:00:03]} Re8 {[%clk 00:01:52]} {[%emt 00:00:02]} 23.
Be3 {[%clk 00:02:28]} {[%emt 00:00:06]} Qf5 {[%clk 00:01:44]} {[%emt 00:00:10]}
24. Bd4 {[%clk 00:02:25]} {[%emt 00:00:05]} Bg5 {[%clk 00:01:40]} {[%emt
00:00:06]} 25. Rfe1 {[%clk 00:02:16]} {[%emt 00:00:11]} Bd2 {[%clk 00:01:39]}
{[%emt 00:00:03]} 26. Re2 {[%clk 00:02:16]} {[%emt 00:00:02]} Bg5 {[%clk
00:01:39]} {[%emt 00:00:02]} 27. Ra7 {[%clk 00:02:15]} {[%emt 00:00:03]} h5
{[%clk 00:01:26]} {[%emt 00:00:15]} 28. Qc7 {[%clk 00:02:13]} {[%emt 00:00:04]}
Be7 {[%clk 00:01:14]} {[%emt 00:00:15]} 29. Re3 {[%clk 00:02:00]} {[%emt
00:00:14]} Rh7 {[%clk 00:00:59]} {[%emt 00:00:17]} 30. b4 {[%clk 00:01:55]}
{[%emt 00:00:08]} g5 {[%clk 00:00:58]} {[%emt 00:00:03]} 31. Qc6 {[%clk
00:01:37]} {[%emt 00:00:20]} Qg4 {[%clk 00:00:55]} {[%emt 00:00:04]} 32. Re1
{[%clk 00:01:33]} {[%emt 00:00:07]} h4 {[%clk 00:00:53]} {[%emt 00:00:04]} 33.
Ra8 {[%clk 00:01:29]} {[%emt 00:00:06]} 1-0

[Event "Nordstansblixten 2025"]
[Site "Nordstan, Göteborg, Sweden"]
[Date "2025.05.10"]
[Round "2.7"]
[White "Eriksson, Leo"]
[Black "Bergdahl, Martin"]
[Result "0-1"]
[TimeControl "3 minutes + 2 seconds per move from move one"]
[WhiteFideId "1795406"]
[BlackFideId "1782231"]
[WhiteElo "1641"]
[BlackElo "1867"]

1. d4 {[%clk 00:03:01]} Nf6 {[%clk 00:03:03]} {[%emt 00:00:01]} 2. c4 {[%clk
00:03:02]} {[%emt 00:00:02]} g6 {[%clk 00:03:03]} 3. Nc3 {[%clk 00:03:03]}
{[%emt 00:00:02]} Bg7 {[%clk 00:03:04]} 4. Bg5 {[%clk 00:03:04]} O-O {[%clk
00:03:03]} {[%emt 00:00:03]} 5. Bxf6 {[%clk 00:03:05]} Bxf6 {[%clk 00:03:04]}
{[%emt 00:00:02]} 6. Nf3 {[%clk 00:03:06]} {[%emt 00:00:01]} d6 {[%clk
00:03:03]} {[%emt 00:00:02]} 7. e4 {[%emt 00:00:05]} c5 {[%clk 00:03:04]} 8. e5
{[%clk 00:02:54]} {[%emt 00:00:12]} cxd4 {[%clk 00:02:46]} {[%emt 00:00:20]} 9.
exf6 {[%clk 00:02:49]} {[%emt 00:00:07]} dxc3 {[%clk 00:02:46]} {[%emt
00:00:02]} 10. fxe7 {[%clk 00:02:46]} {[%emt 00:00:05]} Qxe7+ {[%clk 00:02:47]}
{[%emt 00:00:02]} 11. Be2 {[%clk 00:02:47]} cxb2 {[%clk 00:02:37]} {[%emt
00:00:11]} 12. Rb1 {[%clk 00:02:43]} {[%emt 00:00:06]} Qf6 {[%clk 00:02:25]}
{[%emt 00:00:15]} 13. Qd4 {[%clk 00:02:23]} {[%emt 00:00:21]} Qxd4 {[%clk
00:02:13]} {[%emt 00:00:14]} 14. Nxd4 {[%clk 00:02:24]} Re8 {[%clk 00:01:55]}
{[%emt 00:00:20]} 15. O-O {[%clk 00:02:16]} {[%emt 00:00:11]} Nc6 {[%clk
00:01:47]} {[%emt 00:00:10]} 16. Nxc6 {[%clk 00:02:08]} {[%emt 00:00:10]} Rxe2
{[%clk 00:01:35]} {[%emt 00:00:14]} 17. Nd4 {[%clk 00:01:55]} {[%emt 00:00:14]}
Rd2 {[%clk 00:01:21]} {[%emt 00:00:15]} 18. Rfd1 {[%clk 00:01:41]} {[%emt
00:00:17]} Rxd1+ {[%clk 00:01:09]} {[%emt 00:00:15]} 19. Rxd1 {[%clk 00:01:42]}
Be6 {[%clk 00:01:03]} {[%emt 00:00:07]} 20. Nxe6 {[%clk 00:01:35]} {[%emt
00:00:10]} fxe6 {[%clk 00:01:03]} 21. Rb1 {[%clk 00:01:36]} b5 {[%clk
00:00:54]} {[%emt 00:00:11]} 22. cxb5 {[%clk 00:01:27]} {[%emt 00:00:11]} Rc8
{[%clk 00:00:56]} 23. g3 {[%clk 00:01:24]} {[%emt 00:00:06]} Rc1+ {[%clk
00:00:57]} 0-1